Workbook

Sheet Dados
L3: Valor Total Contrato | M3: 2140840.23
L4: Custo Apurado | M4: =SUM(Tabela18[Total Cat]) -> 981897.77
L5: Total Materiais Planilha = 100% | M5: 1193160.99
A7: Item | B7: Fornecedor | C7: Categoria | D7: Tipo | E7: Data | F7: Material | G7: MDO | H7: Serviços | I7: Locação | J7: Total Cat | K7: Mat_Fat_Direto A | L7: Mat_Fat_Direto B | M7: Soma Custo Total | N7: Contrato | O7: Aditivos | P7: Impostos | Q7: Antecipação de Recebiveis
A8: 7 | B8: Fornecedor A | C8: Material | D8: Hidráulica | E8: Janeiro | F8: 23670.61 | J8: =SUM(Tabela18[[#This Row],[Material]:[Locação]]) -> 23670.61 | K8: =SUM(Tabela18[[#This Row],[Material]:[Locação]]) -> 23670.61 | M8: =SUM(Tabela18[Total Cat]) -> 981897.77 | N8: 1800000 | O8: 89000 | P8: 65000 | Q8: 600000
A9: 2 | B9: Fornecedor B | C9: Material | D9: Mat_Civil | E9: Janeiro | F9: 3692.82 | J9: =SUM(Tabela18[[#This Row],[Material]:[Locação]]) -> 3692.82 | K9: =SUM(Tabela18[[#This Row],[Material]:[Locação]]) -> 3692.82
A10: 3 | B10: fornecedor C | C10: Material | D10: Elétrica | E10: Janeiro | F10: 1966.44 | J10: =SUM(Tabela18[[#This Row],[Material]:[Locação]]) -> 1966.44 | K10: =SUM(Tabela18[[#This Row],[Material]:[Locação]]) -> 1966.44
A11: 4 | B11: Fornecedor D | C11: Material | D11: Hidráulica | E11: Janeiro | F11: 19377.36 | J11: =SUM(Tabela18[[#This Row],[Material]:[Locação]]) -> 19377.36 | K11: =SUM(Tabela18[[#This Row],[Material]:[Locação]]) -> 19377.36
A12: 5 | B12: Fornecedor F | C12: Material | D12: Ferragens | E12: Janeiro | F12: 7078.2 | J12: =SUM(Tabela18[[#This Row],[Material]:[Locação]]) -> 7078.2 | K12: =SUM(Tabela18[[#This Row],[Material]:[Locação]]) -> 7078.2
A13: 6 | B13: Fornecedor G | C13: Material | D13: Hidráulica | E13: Janeiro | F13: 3864 | J13: =SUM(Tabela18[[#This Row],[Material]:[Locação]]) -> 3864 | K13: =SUM(Tabela18[[#This Row],[Material]:[Locação]]) -> 3864
A14: 7 | B14: Fornecedor H | C14: Material | D14: Hidráulica | E14: Fevereiro | F14: 6626.07 | J14: =SUM(Tabela18[[#This Row],[Material]:[Locação]]) -> 6626.07 | K14: =SUM(Tabela18[[#This Row],[Material]:[Locação]]) -> 6626.07
A15: 8 | B15: Fornecedor I | C15: Material | D15: Diversos | E15: Janeiro | F15: 260 | J15: =SUM(Tabela18[[#This Row],[Material]:[Locação]]) -> 260 | K15: =SUM(Tabela18[[#This Row],[Material]:[Locação]]) -> 260
A16: 9 | B16: Fornecedor j | C16: MDO | D16: Constr_Civil | E16: Fevereiro | G16: 2500 | J16: =SUM(Tabela18[[#This Row],[Material]:[Locação]]) -> 2500 | K16: =SUM(Tabela18[[#This Row],[Material]:[Locação]]) -> 2500
A17: 10 | B17: Fornecedor A | C17: Material | D17: Ferragens | E17: Fevereiro | F17: 8198 | J17: =SUM(Tabela18[[#This Row],[Material]:[Locação]]) -> 8198 | K17: =SUM(Tabela18[[#This Row],[Material]:[Locação]]) -> 8198
A18: 11 | B18: Fornecedor B | C18: Material | D18: Hidráulica | E18: Fevereiro | F18: 1510.41 | J18: =SUM(Tabela18[[#This Row],[Material]:[Locação]]) -> 1510.41 | K18: =SUM(Tabela18[[#This Row],[Material]:[Locação]]) -> 1510.41
A19: 12 | B19: fornecedor C | C19: Material | D19: Mat_Civil | E19: Janeiro | F19: 199.47 | J19: =SUM(Tabela18[[#This Row],[Material]:[Locação]]) -> 199.47 | K19: =SUM(Tabela18[[#This Row],[Material]:[Locação]]) -> 199.47
A20: 13 | B20: Fornecedor D | C20: Material | D20: Mat_Civil | E20: Janeiro | F20: 803.8 | J20: =SUM(Tabela18[[#This Row],[Material]:[Locação]]) -> 803.8 | K20: =SUM(Tabela18[[#This Row],[Material]:[Locação]]) -> 803.8
A21: 14 | B21: Fornecedor F | C21: Material | D21: Mat_Civil | E21: Fevereiro | F21: 319.6 | J21: =SUM(Tabela18[[#This Row],[Material]:[Locação]]) -> 319.6 | K21: =SUM(Tabela18[[#This Row],[Material]:[Locação]]) -> 319.6
A22: 15 | B22: Fornecedor G | C22: Material | D22: Mat_Civil | E22: Fevereiro | F22: 368.33 | J22: =SUM(Tabela18[[#This Row],[Material]:[Locação]]) -> 368.33 | K22: =SUM(Tabela18[[#This Row],[Material]:[Locação]]) -> 368.33
A23: 15 | B23: Fornecedor H | C23: Material | D23: Hidráulica | E23: Fevereiro | F23: 500 | J23: =SUM(Tabela18[[#This Row],[Material]:[Locação]]) -> 500 | K23: =SUM(Tabela18[[#This Row],[Material]:[Locação]]) -> 500
A24: 16 | B24: Fornecedor I | C24: Material | D24: Mat_Civil | E24: Fevereiro | F24: 10039.08 | J24: =SUM(Tabela18[[#This Row],[Material]:[Locação]]) -> 10039.08 | K24: =SUM(Tabela18[[#This Row],[Material]:[Locação]]) -> 10039.08
A25: 17 | B25: Fornecedor j | C25: MDO | D25: Constr_Civil | E25: Fevereiro | G25: 3800 | J25: =SUM(Tabela18[[#This Row],[Material]:[Locação]]) -> 3800 | K25: =SUM(Tabela18[[#This Row],[Material]:[Locação]]) -> 3800
A26: 18 | B26: Fornecedor A | C26: Serviços | D26: Frete | E26: Fevereiro | H26: 300 | J26: =SUM(Tabela18[[#This Row],[Material]:[Locação]]) -> 300 | K26: =SUM(Tabela18[[#This Row],[Material]:[Locação]]) -> 300
A27: 19 | B27: Fornecedor B | C27: Material | D27: Pintura | E27: Fevereiro | F27: 1274 | J27: =SUM(Tabela18[[#This Row],[Material]:[Locação]]) -> 1274 | K27: =SUM(Tabela18[[#This Row],[Material]:[Locação]]) -> 1274
A28: 20 | B28: fornecedor C | C28: Locação | D28: Plataforma | E28: Fevereiro | H28: 10001.68 | J28: =SUM(Tabela18[[#This Row],[Material]:[Locação]]) -> 10001.68 | K28: =SUM(Tabela18[[#This Row],[Material]:[Locação]]) -> 10001.68
A29: 21 | B29: Fornecedor D | C29: Material | D29: Ferragens | E29: Fevereiro | F29: 1700 | J29: =SUM(Tabela18[[#This Row],[Material]:[Locação]]) -> 1700 | K29: =SUM(Tabela18[[#This Row],[Material]:[Serviços]]) -> 1700
A30: 22 | B30: Fornecedor F | C30: Material | D30: Diversos | E30: Fevereiro | F30: 419.6 | J30: =SUM(Tabela18[[#This Row],[Material]:[Locação]]) -> 419.6 | K30: =SUM(Tabela18[[#This Row],[Material]:[Serviços]]) -> 419.6
A31: 23 | B31: Fornecedor G | C31: Material | D31: Pintura | E31: Março | F31: 655 | J31: =SUM(Tabela18[[#This Row],[Material]:[Locação]]) -> 655 | K31: =SUM(Tabela18[[#This Row],[Material]:[Serviços]]) -> 655
A32: 24 | B32: Fornecedor H | C32: Material | D32: Ferragens | E32: Março | F32: 6165.23 | J32: =SUM(Tabela18[[#This Row],[Material]:[Locação]]) -> 6165.23 | K32: =SUM(Tabela18[[#This Row],[Material]:[Serviços]]) -> 6165.23
A33: 25 | B33: Fornecedor I | C33: Serviços | D33: Frete | E33: Março | H33: 96 | J33: =SUM(Tabela18[[#This Row],[Material]:[Locação]]) -> 96 | K33: =SUM(Tabela18[[#This Row],[Material]:[Serviços]]) -> 96
A34: 26 | B34: Fornecedor j | C34: Material | D34: Pintura | E34: Março | F34: 1123.4 | J34: =SUM(Tabela18[[#This Row],[Material]:[Locação]]) -> 1123.4 | K34: =SUM(Tabela18[[#This Row],[Material]:[Serviços]]) -> 1123.4
A35: 27 | B35: Fornecedor A | C35: Material | D35: Elétrica | E35: Março | F35: 8879.96 | J35: =SUM(Tabela18[[#This Row],[Material]:[Locação]]) -> 8879.96 | K35: =SUM(Tabela18[[#This Row],[Material]:[Serviços]]) -> 8879.96
A36: 28 | B36: Fornecedor B | C36: Serviços | D36: Sondagem | E36: Março | H36: 1840 | J36: =SUM(Tabela18[[#This Row],[Material]:[Locação]]) -> 1840 | K36: =SUM(Tabela18[[#This Row],[Material]:[Serviços]]) -> 1840
A37: 29 | B37: fornecedor C | C37: Material | D37: Ferragens | E37: Fevereiro | F37: 3500 | J37: =SUM(Tabela18[[#This Row],[Material]:[Locação]]) -> 3500 | K37: =SUM(Tabela18[[#This Row],[Material]:[Serviços]]) -> 3500
A38: 30 | B38: Fornecedor D | C38: Material | D38: Ferragens | E38: Março | F38: 239.8 | J38: =SUM(Tabela18[[#This Row],[Material]:[Locação]]) -> 239.8 | K38: =SUM(Tabela18[[#This Row],[Material]:[Serviços]]) -> 239.8
A39: 31 | B39: Fornecedor F | C39: Serviços | D39: Frete | E39: Março | H39: 1145 | J39: =SUM(Tabela18[[#This Row],[Material]:[Locação]]) -> 1145 | K39: =SUM(Tabela18[[#This Row],[Material]:[Serviços]]) -> 1145
A40: 32 | B40: Fornecedor G | C40: Material | D40: Diversos | E40: Março | F40: 1041.49 | J40: =SUM(Tabela18[[#This Row],[Material]:[Locação]]) -> 1041.49 | K40: =SUM(Tabela18[[#This Row],[Material]:[Serviços]]) -> 1041.49
A41: 33 | B41: Fornecedor H | C41: Serviços | D41: Frete | E41: Março | H41: 1150 | J41: =SUM(Tabela18[[#This Row],[Material]:[Locação]]) -> 1150 | K41: =SUM(Tabela18[[#This Row],[Material]:[Serviços]]) -> 1150
A42: 34 | B42: Fornecedor I | C42: Serviços | D42: Frete | E42: Março | H42: 144 | J42: =SUM(Tabela18[[#This Row],[Material]:[Locação]]) -> 144 | K42: =SUM(Tabela18[[#This Row],[Material]:[Serviços]]) -> 144
A43: 35 | B43: Fornecedor j | C43: Material | D43: Ferragens | E43: Março | F43: 1777.48 | J43: =SUM(Tabela18[[#This Row],[Material]:[Locação]]) -> 1777.48 | K43: =SUM(Tabela18[[#This Row],[Material]:[Serviços]]) -> 1777.48
A44: 36 | B44: Fornecedor A | C44: Serviços | D44: Frete | E44: Março | H44: 300 | J44: =SUM(Tabela18[[#This Row],[Material]:[Locação]]) -> 300 | K44: =SUM(Tabela18[[#This Row],[Material]:[Serviços]]) -> 300
A45: 37 | B45: Fornecedor B | C45: MDO | D45: Constr_Civil | E45: Março | G45: 2800 | J45: =SUM(Tabela18[[#This Row],[Material]:[Locação]]) -> 2800 | K45: =SUM(Tabela18[[#This Row],[Material]:[Serviços]]) -> 2800
A46: 38 | B46: fornecedor C | C46: Material | D46: Ferramental | E46: Março | F46: 385 | J46: =SUM(Tabela18[[#This Row],[Material]:[Locação]]) -> 385 | K46: =SUM(Tabela18[[#This Row],[Material]:[Serviços]]) -> 385
A47: 39 | B47: Fornecedor D | C47: Material | D47: Elétrica | E47: Março | F47: 297 | J47: =SUM(Tabela18[[#This Row],[Material]:[Locação]]) -> 297 | K47: =SUM(Tabela18[[#This Row],[Material]:[Serviços]]) -> 297
A48: 40 | B48: Fornecedor F | C48: Locação | D48: Andaime | E48: Março | H48: 311.6 | J48: =SUM(Tabela18[[#This Row],[Material]:[Locação]]) -> 311.6 | K48: =SUM(Tabela18[[#This Row],[Material]:[Serviços]]) -> 311.6
A49: 41 | B49: Fornecedor G | C49: Serviços | D49: Frete | E49: Março | H49: 90 | J49: =SUM(Tabela18[[#This Row],[Material]:[Locação]]) -> 90 | K49: =SUM(Tabela18[[#This Row],[Material]:[Serviços]]) -> 90
A50: 42 | B50: Fornecedor H | C50: Locação | D50: Escora | E50: Março | H50: 240 | J50: =SUM(Tabela18[[#This Row],[Material]:[Locação]]) -> 240 | K50: =SUM(Tabela18[[#This Row],[Material]:[Serviços]]) -> 240
A51: 43 | B51: Fornecedor I | C51: Material | D51: Diversos | E51: Março | F51: 142 | J51: =SUM(Tabela18[[#This Row],[Material]:[Locação]]) -> 142 | K51: =SUM(Tabela18[[#This Row],[Material]:[Serviços]]) -> 142
A52: 44 | B52: Fornecedor j | C52: Material | D52: Ferragens | E52: Fevereiro | F52: 2021.8 | J52: =SUM(Tabela18[[#This Row],[Material]:[Locação]]) -> 2021.8 | K52: =SUM(Tabela18[[#This Row],[Material]:[Serviços]]) -> 2021.8
A53: 45 | B53: Fornecedor A | C53: Material | D53: Reservatório | E53: Fevereiro | F53: 178000 | J53: =SUM(Tabela18[[#This Row],[Material]:[Locação]]) -> 178000 | L53: 178000
A54: 46 | B54: Fornecedor B | C54: Material | D54: Bomba | E54: Fevereiro | F54: 154500 | J54: =SUM(Tabela18[[#This Row],[Material]:[Locação]]) -> 154500 | L54: 154500
A55: 47 | B55: fornecedor C | C55: Material | D55: Hidráulica | E55: Fevereiro | F55: 215684.34 | J55: =SUM(Tabela18[[#This Row],[Material]:[Locação]]) -> 215684.34 | L55: 215684.34
A56: 48 | B56: Fornecedor D | C56: Material | D56: Hidráulica | E56: Abril | F56: 18126.07 | J56: =SUM(Tabela18[[#This Row],[Material]:[Locação]]) -> 18126.07 | L56: 18126.07
A57: 49 | B57: Fornecedor F | C57: Material | D57: Hidráulica | E57: Abril | F57: 154574.71 | J57: =SUM(Tabela18[[#This Row],[Material]:[Locação]]) -> 154574.71 | L57: 154574.71
A58: 50 | B58: Fornecedor G | C58: MDO | D58: Sist_SPK | E58: Janeiro | G58: 10000 | J58: =SUM(Tabela18[[#This Row],[Material]:[Locação]]) -> 10000 | K58: =SUM(Tabela18[[#This Row],[Material]:[Locação]]) -> 10000
A59: 51 | B59: Fornecedor H | C59: MDO | D59: Sist_SPK | E59: Fevereiro | G59: 10000 | J59: =SUM(Tabela18[[#This Row],[Material]:[Locação]]) -> 10000 | K59: =SUM(Tabela18[[#This Row],[Material]:[Locação]]) -> 10000
A60: 52 | B60: Fornecedor I | C60: MDO | D60: Sist_SPK | E60: Março | G60: 40000 | J60: =SUM(Tabela18[[#This Row],[Material]:[Locação]]) -> 40000 | K60: =SUM(Tabela18[[#This Row],[Material]:[Locação]]) -> 40000
A61: 53 | B61: Fornecedor j | C61: MDO | D61: Sist_SPK | E61: Abril | G61: 20000 | J61: =SUM(Tabela18[[#This Row],[Material]:[Locação]]) -> 20000 | K61: =SUM(Tabela18[[#This Row],[Material]:[Locação]]) -> 20000
A62: 54 | B62: Fornecedor A | C62: Material | D62: Diversos | E62: Abril | F62: 129.2 | J62: =SUM(Tabela18[[#This Row],[Material]:[Locação]]) -> 129.2 | K62: =SUM(Tabela18[[#This Row],[Material]:[Locação]]) -> 129.2
A63: 55 | B63: Fornecedor B | C63: Material | D63: Ferragens | E63: Abril | F63: 9509.34 | J63: =SUM(Tabela18[[#This Row],[Material]:[Locação]]) -> 9509.34 | K63: =SUM(Tabela18[[#This Row],[Material]:[Locação]]) -> 9509.34
A64: 56 | B64: fornecedor C | C64: Locação | D64: Escora | E64: Abril | H64: 600 | J64: =SUM(Tabela18[[#This Row],[Material]:[Locação]]) -> 600 | K64: =SUM(Tabela18[[#This Row],[Material]:[Locação]]) -> 600
A65: 57 | B65: Fornecedor D | C65: Locação | D65: Andaime | E65: Abril | H65: 226.1 | J65: =SUM(Tabela18[[#This Row],[Material]:[Locação]]) -> 226.1 | K65: =SUM(Tabela18[[#This Row],[Material]:[Locação]]) -> 226.1
A66: 58 | B66: Fornecedor F | C66: Serviços | D66: Frete | E66: Abril | H66: 725 | J66: =SUM(Tabela18[[#This Row],[Material]:[Locação]]) -> 725 | K66: =SUM(Tabela18[[#This Row],[Material]:[Locação]]) -> 725
A67: 59 | B67: Fornecedor G | C67: Material | D67: Diversos | E67: Abril | F67: 280 | J67: =SUM(Tabela18[[#This Row],[Material]:[Locação]]) -> 280 | K67: =SUM(Tabela18[[#This Row],[Material]:[Locação]]) -> 280
A68: 60 | B68: Fornecedor H | C68: Material | D68: Elétrica | E68: Abril | F68: 444.5 | J68: =SUM(Tabela18[[#This Row],[Material]:[Locação]]) -> 444.5 | K68: =SUM(Tabela18[[#This Row],[Material]:[Locação]]) -> 444.5
A69: 61 | B69: Fornecedor I | C69: Serviços | D69: Frete | E69: Abril | H69: 80 | J69: =SUM(Tabela18[[#This Row],[Material]:[Locação]]) -> 80 | K69: =SUM(Tabela18[[#This Row],[Material]:[Locação]]) -> 80
A70: 62 | B70: Fornecedor j | C70: Locação | D70: Plataforma | E70: Abril | H70: 458.43 | J70: =SUM(Tabela18[[#This Row],[Material]:[Locação]]) -> 458.43 | K70: =SUM(Tabela18[[#This Row],[Material]:[Locação]]) -> 458.43
A71: 63 | B71: Fornecedor A | C71: Locação | D71: Escora | E71: Abril | H71: 150 | J71: =SUM(Tabela18[[#This Row],[Material]:[Locação]]) -> 150 | K71: =SUM(Tabela18[[#This Row],[Material]:[Locação]]) -> 150
A72: 64 | B72: Fornecedor B | C72: Serviços | D72: Projeto | E72: Abril | H72: 2500 | J72: =SUM(Tabela18[[#This Row],[Material]:[Locação]]) -> 2500 | K72: =SUM(Tabela18[[#This Row],[Material]:[Locação]]) -> 2500
A73: 65 | B73: fornecedor C | C73: Material | D73: Ferragens | E73: Maio | F73: 5638.6 | J73: =SUM(Tabela18[[#This Row],[Material]:[Locação]]) -> 5638.6 | K73: =SUM(Tabela18[[#This Row],[Material]:[Locação]]) -> 5638.6
A74: 66 | B74: Fornecedor D | C74: Material | D74: Elétrica | E74: Maio | F74: 2123.65 | J74: =SUM(Tabela18[[#This Row],[Material]:[Locação]]) -> 2123.65 | K74: =SUM(Tabela18[[#This Row],[Material]:[Locação]]) -> 2123.65
A75: 67 | B75: Fornecedor F | C75: Material | D75: Elétrica | E75: Maio | F75: 333.6 | J75: =SUM(Tabela18[[#This Row],[Material]:[Locação]]) -> 333.6 | K75: =SUM(Tabela18[[#This Row],[Material]:[Locação]]) -> 333.6
A76: 76 | B76: Fornecedor G | C76: Material | D76: Elétrica | E76: Maio | F76: 15000 | J76: =SUM(Tabela18[[#This Row],[Material]:[Locação]]) -> 15000

Sheet Menu
A1: Categoria | B1: Cat_Mat | C1: Cat_MDO | D1: Cat_Serviços | E1: Cat_Locação | F1: Cat_Ferramental
A2: Material | B2: Hidráulica | C2: Constr_Civil | D2: Frete | E2: Plataforma | F2: Elétrica
A3: MDO | B3: Mat_Civil | C3: Sist_SPK | D3: Sondagem | E3: Andaime | F3: Mecânica
A4: Serviços | B4: Elétrica | C4: Forro | D4: Projeto | E4: Escora
A5: Locação | B5: Ferragens | C5: Serralheria | E5: Escada
A6: Ferramental | B6: Pintura | C6: Elétrico
B7: Diversos
B8: Bomba
B9: Reservatório

Sheet Planilha9
A6: Custo por Categoria | E6: Custo por Tipo de Categoria | J6: Custo Mensal | M6: Receita Líquida | V6: Faturamento Materiais | AY6: =SUM(Tabela14[Valor Orçado]) -> 1713192.18 | BD6: Resumo Análise do Orçamento
A8: Data | B8: (Tudo) | E8: Categoria | F8: Material | V8: Fat Mega | W8: Fat Makro
M9: Descrição | N9: Valor | O9: Receitas | P9: Antecipações | Q9: Despesas | R9: Impostos | S9: Lucro | V9: =SUM(Tabela18[Mat_Fat_Direto A]/Dados!$M$5) -> 0.2061856297 | W9: =SUM(Tabela18[Mat_Fat_Direto B]/Dados!$M$5) -> 0.6041809329 | AX9: Descrição | AY9: Valor Orçado | AZ9: (%) Total Orçado | BA9: Valor Realizado | BD9: Descrição | BE9: Valor Orçado | BF9: (%) Total Orçado
A10: Categoria | B10: Soma de Total Cat | F10: Total Material | G10: Total MDO | H10: Total Serviços | K10: Valor Total Custo | M10: Contrato | N10: =Dados!N8 -> 1800000 | O10: =SUM(N10+N11) -> 1889000 | P10: =SUM(N13) -> 600000 | Q10: =N12 -> 981897.77 | R10: =N14 -> 65000 | S10: =SUM(O10-Q10-R10)/O10 -> 0.4457926046 | AX10: Serviços Preliminares | AY10: 51160 | AZ10: =Tabela14[[#This Row],[Valor Orçado]]/AY6 -> 0.0298623824 | BA10: 0 | BD10: Serviços Preliminares | BE10: 51160 | BF10: =BE10/AY6 -> 0.0298623824
A11: Locação | B11: 11987.81 | E11: Bomba | F11: 154500 | J11: Janeiro | K11: 70912.7 | M11: Aditivos | N11: =Dados!O8 -> 89000 | AX11: Tubulaçõe e Acessórios | AY11: 669009.83 | AZ11: =Tabela14[[#This Row],[Valor Orçado]]/AY6 -> 0.3905048352 | BA11: 443933 | BD11: Tubulaçõe e Acessórios | BE11: 669009.83 | BF11: =BE11/AY6 -> 0.3905048352
A12: Material | B12: 872439.96 | E12: Diversos | F12: 2272.29 | J12: Fevereiro | K12: 611262.91 | M12: Despesas | N12: =Dados!M8 -> 981897.77 | AX12: Válvulas, Registros e medições | AY12: 116169.07 | AZ12: =Tabela14[[#This Row],[Valor Orçado]]/AY6 -> 0.06780854557 | BA12: 0 | BD12: Válvulas, Registros e medições | BE12: 116169.07 | BF12: =BE12/AY6 -> 0.06780854557
A13: MDO | B13: 89100 | E13: Elétrica | F13: 29045.15 | J13: Março | K13: 68822.96 | M13: Antecipações | N13: =Dados!Q8 -> 600000 | AX13: Bombas | AY13: 173692.8 | AZ13: =Tabela14[[#This Row],[Valor Orçado]]/AY6 -> 0.1013854733 | BA13: 154500 | BD13: Bombas | BE13: 173692.8 | BF13: =BE13/AY6 -> 0.1013854733
A14: Serviços | B14: 8370 | E14: Ferragens | F14: 45828.45 | J14: Abril | K14: 207803.35 | M14: Impostos | N14: =Dados!P8 -> 65000 | AX14: Bicos SPK | AY14: 136031.2 | AZ14: =Tabela14[[#This Row],[Valor Orçado]]/AY6 -> 0.07940218359 | BA14: 0 | BD14: Bicos SPK | BE14: 136031.2 | BF14: =BE14/AY6 -> 0.07940218359
E15: Hidráulica | F15: 443933.57 | J15: Maio | K15: 23095.85 | AX15: Alarme e I.E | AY15: 91674.88 | AZ15: =Tabela14[[#This Row],[Valor Orçado]]/AY6 -> 0.05351114783 | BA15: 11528.4 | BD15: Alarme e I.E | BE15: 91674.88 | BF15: =BE15/AY6 -> 0.05351114783
E16: Mat_Civil | F16: 15423.1 | AX16: Reservatório | AY16: 234400 | AZ16: =Tabela14[[#This Row],[Valor Orçado]]/AY6 -> 0.1368206105 | BA16: 178000 | BD16: Reservatório | BE16: 234400 | BF16: =BE16/AY6 -> 0.1368206105
E17: Pintura | F17: 3052.4 | AX17: Adequações Diversas | AY17: 180358.4 | AZ17: =Tabela14[[#This Row],[Valor Orçado]]/AY6 -> 0.1052762218 | BA17: 62683.3 | BD17: Adequações Diversas | BE17: 180358.4 | BF17: =BE17/AY6 -> 0.1052762218
E18: Reservatório | F18: 178000 | AX18: Extintores | AY18: 31188.8 | AZ18: =Tabela14[[#This Row],[Valor Orçado]]/AY6 -> 0.0182050796 | BA18: 0 | BD18: Extintores | BE18: 31188.8 | BF18: =BE18/AY6 -> 0.0182050796
E19: Ferramental | F19: 385 | AX19: Omissos | AY19: 29507.2 | AZ19: =Tabela14[[#This Row],[Valor Orçado]]/AY6 -> 0.01722352013 | BA19: 0 | BD19: Omissos | BE19: 29507.2 | BF19: =BE19/AY6 -> 0.01722352013
AX20: Total | AY20: =SUM(AY10:AY19) -> 1713192.18 | BA20: =SUM(BA10:BA19) -> 850644.7 | BD20: Total | BE20: =SUM(BE10:BE19) -> 1713192.18 | BF20: =SUM(BF10:BF19) -> 1
AX23: Descrição | AY23: Soma de Valor Orçado | AZ23: Contagem de (%) Total Orçado
AX24: Adequações Diversas | AY24: 180358.4 | AZ24: 1
AX25: Alarme e I.E | AY25: 91674.88 | AZ25: 1
AX26: Bicos SPK | AY26: 136031.2 | AZ26: 1
AX27: Bombas | AY27: 173692.8 | AZ27: 1
AX28: Extintores | AY28: 31188.8 | AZ28: 1
AX29: Omissos | AY29: 29507.2 | AZ29: 1
AX30: Reservatório | AY30: 234400 | AZ30: 1
AX31: Serviços Preliminares | AY31: 51160 | AZ31: 1
AX32: Tubulaçõe e Acessórios | AY32: 669009.83 | AZ32: 1
AX33: Válvulas, Registros e medições | AY33: 116169.07 | AZ33: 1

Sheet Base_Fonte
A1: Categoria | B1: Cat_Mat | C1: Cat_MDO | D1: Cat_Serviços | E1: Cat_Locação
A2: Material | B2: Hidráulica | C2: Constr_Civil | D2: Frete | E2: Plataforma
A3: MDO | B3: Mat_Civil | C3: Sist_SPK | D3: Sondagem | E3: Andaime
A4: Serviços | B4: Elétrica | C4: Forro | D4: Projeto | E4: Escora
A5: Locação | B5: Ferragens | C5: Serralheria | E5: Escada
B6: Pintura | C6: Elétrico
B7: Diversos
B8: Bomba
B9: Reservatório
B10: Ferramental

Sheet Fonte
C3: Categoria | E3: Tipo_Mat | G3: Tipo_MDO | I3: Tipo_Serviço | K3: Tipo_Locação
B4: 4 | C4: Material | E4: Hidráulica | G4: Constr_Civil | I4: Frete | K4: Plataforma
B5: 5 | C5: MDO | E5: Mat_Civil | G5: Sist_SPK | I5: Sondagem | K5: Andaime
B6: 6 | C6: Serviços | E6: Elétrica | G6: Forro | I6: Projeto | K6: Escora
B7: 7 | C7: Locação | E7: Ferragens | G7: Serralheria | K7: Escada
B8: 8 | E8: Pintura | G8: Elétrico
B9: 9 | E9: Diversos
B10: 10 | E10: Bomba
B11: 11 | E11: Reservatório
B12: 12 | E12: Ferramental
